[Event "Late-Titled-Tuesday-Blitz-September-05-2023"]
[Site "Chess.com"]
[Date "2023.09.05"]
[Round "10"]
[White "Haykoooo0o"]
[Black "Aradhya2000"]
[Result "0-1"]
[WhiteElo "2492"]
[BlackElo "2709"]
[TimeControl "180+1"]
[EndTime "15:54:26 PDT"]
[Termination "Aradhya2000 won by resignation"]

1. d4 {[%clk 0:03:00.9]} 1... d5 {[%clk 0:02:55.4]} 2. Nf3 {[%clk 0:03:01]} 2...
Nf6 {[%clk 0:02:54.9]} 3. e3 {[%clk 0:03:01.2]} 3... e6 {[%clk 0:02:53.5]} 4.
Bd3 {[%clk 0:03:01.8]} 4... c5 {[%clk 0:02:53.2]} 5. c3 {[%clk 0:03:01.9]} 5...
Nc6 {[%clk 0:02:53.6]} 6. Nbd2 {[%clk 0:03:01.8]} 6... Be7 {[%clk 0:02:54.1]} 7.
Qe2 {[%clk 0:03:02.1]} 7... O-O {[%clk 0:02:54.7]} 8. O-O {[%clk 0:03:02.7]}
8... b6 {[%clk 0:02:55]} 9. dxc5 {[%clk 0:03:00.9]} 9... Bxc5 {[%clk 0:02:53.7]}
10. e4 {[%clk 0:03:01.4]} 10... Bb7 {[%clk 0:02:47.9]} 11. e5 {[%clk 0:02:53.6]}
11... Nd7 {[%clk 0:02:47.2]} 12. b4 {[%clk 0:02:48]} 12... Be7 {[%clk 0:02:47]}
13. Nb3 {[%clk 0:02:48.6]} 13... Qc7 {[%clk 0:02:46]} 14. Bf4 {[%clk 0:02:46.2]}
14... a5 {[%clk 0:02:44.7]} 15. a3 {[%clk 0:02:44.2]} 15... axb4 {[%clk
0:02:42.8]} 16. axb4 {[%clk 0:02:43.5]} 16... Rxa1 {[%clk 0:02:42.7]} 17. Rxa1
{[%clk 0:02:43]} 17... Ra8 {[%clk 0:02:42.5]} 18. Rxa8+ {[%clk 0:02:42.4]} 18...
Bxa8 {[%clk 0:02:43.4]} 19. h3 {[%clk 0:02:23.3]} 19... Bb7 {[%clk 0:02:39.8]}
20. Qe3 {[%clk 0:02:12.5]} 20... Nf8 {[%clk 0:02:36.4]} 21. Nbd4 {[%clk
0:02:11]} 21... Nxd4 {[%clk 0:02:34.6]} 22. Nxd4 {[%clk 0:02:10.8]} 22... Ng6
{[%clk 0:02:32.8]} 23. Nb5 {[%clk 0:01:48.8]} 23... Qc6 {[%clk 0:02:29.1]} 24.
Bxg6 {[%clk 0:01:22.7]} 24... hxg6 {[%clk 0:02:22.4]} 25. Nd4 {[%clk 0:01:18.7]}
25... Qc4 {[%clk 0:02:22.1]} 26. Bg3 {[%clk 0:01:11.9]} 26... Ba6 {[%clk
0:02:21.5]} 27. Kh2 {[%clk 0:01:08.8]} 27... Qa2 {[%clk 0:02:11]} 28. Nc6 {[%clk
0:01:03.1]} 28... Bf8 {[%clk 0:02:10.4]} 29. Qxb6 {[%clk 0:01:00.1]} 29... Qc4
{[%clk 0:02:09.2]} 30. Na5 {[%clk 0:00:20.6]} 30... Qc8 {[%clk 0:02:06.1]} 31.
b5 {[%clk 0:00:19.3]} 31... Bxb5 {[%clk 0:02:06.3]} 32. Qxb5 {[%clk 0:00:18.1]}
32... Qxc3 {[%clk 0:02:07]} 33. Nc6 {[%clk 0:00:15.6]} 33... g5 {[%clk 0:02:05]}
34. Qb7 {[%clk 0:00:13.1]} 34... Qc2 {[%clk 0:01:58.3]} 35. Nd8 {[%clk
0:00:11.9]} 35... Qf5 {[%clk 0:01:57.7]} 36. Qd7 {[%clk 0:00:10.7]} 36... g6
{[%clk 0:01:52.5]} 37. Nc6 {[%clk 0:00:09.8]} 37... Bc5 {[%clk 0:01:46.8]} 38.
Ne7+ {[%clk 0:00:09.2]} 38... Bxe7 {[%clk 0:01:46.2]} 39. Qxe7 {[%clk
0:00:10.1]} 39... Kg7 {[%clk 0:01:46.5]} 40. Qf6+ {[%clk 0:00:09.2]} 40... Qxf6
{[%clk 0:01:46.5]} 41. exf6+ {[%clk 0:00:10.1]} 41... Kxf6 {[%clk 0:01:47.4]}
42. f3 {[%clk 0:00:10.5]} 42... e5 {[%clk 0:01:46.7]} 43. Kg1 {[%clk 0:00:11]}
43... Ke6 {[%clk 0:01:42.6]} 44. Kf2 {[%clk 0:00:11]} 44... f5 {[%clk
0:01:43.3]} 45. Ke2 {[%clk 0:00:11.2]} 45... d4 {[%clk 0:01:42.1]} 46. Be1
{[%clk 0:00:11.2]} 46... Kd5 {[%clk 0:01:42.7]} 47. g4 {[%clk 0:00:11.3]} 47...
e4 {[%clk 0:01:41.4]} 48. Bd2 {[%clk 0:00:10.8]} 48... d3+ {[%clk 0:01:38.9]}
49. Ke3 {[%clk 0:00:09.8]} 49... f4+ {[%clk 0:01:38.5]} 50. Kf2 {[%clk
0:00:10.2]} 50... e3+ {[%clk 0:01:39.2]} 51. Bxe3 {[%clk 0:00:08]} 51... fxe3+
{[%clk 0:01:40.1]} 52. Kxe3 {[%clk 0:00:08.9]} 52... Kc4 {[%clk 0:01:40.6]} 53.
Kd2 {[%clk 0:00:05.9]} 53... Kd4 {[%clk 0:01:41]} 54. f4 {[%clk 0:00:05.7]}
54... gxf4 {[%clk 0:01:41]} 55. h4 {[%clk 0:00:06.4]} 55... f3 {[%clk
0:01:41.6]} 56. h5 {[%clk 0:00:07]} 56... gxh5 {[%clk 0:01:42.2]} 57. gxh5
{[%clk 0:00:07.2]} 57... f2 {[%clk 0:01:42.9]} 58. h6 {[%clk 0:00:06.1]} 58...
f1=Q {[%clk 0:01:43.5]} 59. h7 {[%clk 0:00:07]} 59... Qe2+ {[%clk 0:01:44.1]}
0-1

[Event "Late-Titled-Tuesday-Blitz-September-05-2023"]
[Site "Chess.com"]
[Date "2023.09.05"]
[Round "10"]
[White "DTChess"]
[Black "TheMagician"]
[Result "1-0"]
[WhiteElo "2467"]
[BlackElo "2111"]
[TimeControl "180+1"]
[EndTime "15:54:32 PDT"]
[Termination "DTChess won by resignation"]

1. e4 {[%clk 0:03:00.9]} 1... e5 {[%clk 0:02:57.9]} 2. Nf3 {[%clk 0:03:00.4]}
2... Nc6 {[%clk 0:02:57.9]} 3. Bb5 {[%clk 0:02:59.7]} 3... Nge7 {[%clk
0:02:57.4]} 4. O-O {[%clk 0:02:59]} 4... Ng6 {[%clk 0:02:57.2]} 5. Re1 {[%clk
0:02:58.1]} 5... Bc5 {[%clk 0:02:54.9]} 6. c3 {[%clk 0:02:56.7]} 6... Bb6 {[%clk
0:02:54.7]} 7. d4 {[%clk 0:02:56.5]} 7... d6 {[%clk 0:02:48.2]} 8. h3 {[%clk
0:02:55.8]} 8... O-O {[%clk 0:02:45]} 9. Be3 {[%clk 0:02:53.4]} 9... h6 {[%clk
0:02:40]} 10. Nbd2 {[%clk 0:02:47.4]} 10... Bd7 {[%clk 0:02:40.1]} 11. Ba4
{[%clk 0:02:42.8]} 11... Qe7 {[%clk 0:02:31]} 12. Bc2 {[%clk 0:02:41.8]} 12...
Qf6 {[%clk 0:02:23.8]} 13. Nc4 {[%clk 0:02:31.2]} 13... Rad8 {[%clk 0:01:47.4]}
14. Nxb6 {[%clk 0:02:19.7]} 14... axb6 {[%clk 0:01:44.9]} 15. Qd2 {[%clk
0:02:19.7]} 15... Nf4 {[%clk 0:01:42.2]} 16. Bxf4 {[%clk 0:02:09.9]} 16... exf4
{[%clk 0:01:41.5]} 17. Kh2 {[%clk 0:01:58.1]} 17... g5 {[%clk 0:01:39]} 18. e5
{[%clk 0:01:47.9]} 18... dxe5 {[%clk 0:01:34.1]} 19. Qd3 {[%clk 0:01:37.3]}
19... Qg7 {[%clk 0:01:33.8]} 20. Nxe5 {[%clk 0:01:35.1]} 20... Nxe5 {[%clk
0:01:33.4]} 21. Rxe5 {[%clk 0:01:34.8]} 21... Bc6 {[%clk 0:01:26.5]} 22. Rae1
{[%clk 0:01:30.6]} 22... b5 {[%clk 0:01:07.2]} 23. Bb3 {[%clk 0:01:23.7]} 23...
g4 {[%clk 0:00:49.6]} 24. hxg4 {[%clk 0:01:00.1]} 24... Qxg4 {[%clk 0:00:37.8]}
25. f3 {[%clk 0:00:52.5]} 25... Qh4+ {[%clk 0:00:35]} 26. Kg1 {[%clk 0:00:51.5]}
26... Rfe8 {[%clk 0:00:33.9]} 27. Qg6+ {[%clk 0:00:30.6]} 27... Kh8 {[%clk
0:00:26.3]} 28. Bxf7 {[%clk 0:00:28.7]} 28... Qxe1+ {[%clk 0:00:17.9]} 29. Rxe1
{[%clk 0:00:27.8]} 29... Rxe1+ {[%clk 0:00:17]} 30. Kf2 {[%clk 0:00:26.1]} 1-0

[Event "Late-Titled-Tuesday-Blitz-September-05-2023"]
[Site "Chess.com"]
[Date "2023.09.05"]
[Round "10"]
[White "GianmarcoVaR"]
[Black "ckgchess"]
[Result "0-1"]
[WhiteElo "2623"]
[BlackElo "2839"]
[TimeControl "180+1"]
[EndTime "15:54:37 PDT"]
[Termination "ckgchess won on time"]

1. e4 {[%clk 0:03:00.1]} 1... e5 {[%clk 0:02:58.9]} 2. Nf3 {[%clk 0:03:00.2]}
2... Nf6 {[%clk 0:02:59.6]} 3. d4 {[%clk 0:02:58.5]} 3... d5 {[%clk 0:02:50.9]}
4. dxe5 {[%clk 0:02:55.2]} 4... Nxe4 {[%clk 0:02:51.2]} 5. Nbd2 {[%clk
0:02:51.6]} 5... Nc5 {[%clk 0:02:41.4]} 6. Nb3 {[%clk 0:02:50.1]} 6... c6 {[%clk
0:02:38.3]} 7. Be3 {[%clk 0:02:48.2]} 7... Nba6 {[%clk 0:02:29.6]} 8. c3 {[%clk
0:02:30.1]} 8... Be7 {[%clk 0:02:28.5]} 9. Nbd4 {[%clk 0:02:28.9]} 9... O-O
{[%clk 0:02:26.8]} 10. Qc2 {[%clk 0:02:22.8]} 10... Nc7 {[%clk 0:02:13.4]} 11.
Nf5 {[%clk 0:02:16]} 11... Ne4 {[%clk 0:02:02.1]} 12. Nxe7+ {[%clk 0:02:13.7]}
12... Qxe7 {[%clk 0:02:03]} 13. Bd3 {[%clk 0:02:12.6]} 13... Bf5 {[%clk
0:02:01.7]} 14. Nd4 {[%clk 0:01:37.8]} 14... Bg6 {[%clk 0:01:40.6]} 15. h4
{[%clk 0:01:32.6]} 15... c5 {[%clk 0:01:14.9]} 16. h5 {[%clk 0:00:51]} 16...
cxd4 {[%clk 0:01:14.3]} 17. Bxd4 {[%clk 0:00:30.2]} 17... Bf5 {[%clk 0:01:12.5]}
18. f3 {[%clk 0:00:28.1]} 18... Ne6 {[%clk 0:00:44.8]} 19. fxe4 {[%clk
0:00:20.6]} 19... dxe4 {[%clk 0:00:45.7]} 20. Be2 {[%clk 0:00:14.7]} 20... Nxd4
{[%clk 0:00:37]} 21. cxd4 {[%clk 0:00:15.2]} 21... Rac8 {[%clk 0:00:37]} 22. Qd2
{[%clk 0:00:15.1]} 22... Rfd8 {[%clk 0:00:35.2]} 23. O-O {[%clk 0:00:12.6]}
23... g6 {[%clk 0:00:32.8]} 24. Rad1 {[%clk 0:00:06.7]} 24... Qh4 {[%clk
0:00:27.4]} 25. Qe3 {[%clk 0:00:04.8]} 25... Rc2 {[%clk 0:00:27.8]} 26. Rf4
{[%clk 0:00:03.6]} 26... Rxe2 {[%clk 0:00:26.4]} 27. Qxe2 {[%clk 0:00:02.1]}
27... Qxf4 {[%clk 0:00:26.4]} 28. Rf1 {[%clk 0:00:02.3]} 28... Qg4 {[%clk
0:00:25]} 29. Qe3 {[%clk 0:00:01.8]} 29... Qxh5 {[%clk 0:00:25.3]} 30. Rc1
{[%clk 0:00:01.5]} 30... Qg4 {[%clk 0:00:22.4]} 31. Qc3 {[%clk 0:00:01.3]} 31...
e3 {[%clk 0:00:21.7]} 0-1

[Event "Late-Titled-Tuesday-Blitz-September-05-2023"]
[Site "Chess.com"]
[Date "2023.09.05"]
[Round "10"]
[White "IMSlavin"]
[Black "AquivaRubinstein"]
[Result "0-1"]
[WhiteElo "2187"]
[BlackElo "2484"]
[TimeControl "180+1"]
[EndTime "15:54:42 PDT"]
[Termination "AquivaRubinstein won by checkmate"]

1. e4 {[%clk 0:02:59.1]} 1... Nf6 {[%clk 0:02:56.9]} 2. Nc3 {[%clk 0:02:58.1]}
2... d5 {[%clk 0:02:51.7]} 3. e5 {[%clk 0:02:57.8]} 3... Nfd7 {[%clk 0:02:47]}
4. d4 {[%clk 0:02:56.6]} 4... e6 {[%clk 0:02:47.3]} 5. f4 {[%clk 0:02:56.1]}
5... c5 {[%clk 0:02:47.5]} 6. Nf3 {[%clk 0:02:56.4]} 6... Nc6 {[%clk 0:02:47.9]}
7. Be3 {[%clk 0:02:56.6]} 7... a6 {[%clk 0:02:47.9]} 8. Qd2 {[%clk 0:02:56.8]}
8... cxd4 {[%clk 0:02:47.7]} 9. Nxd4 {[%clk 0:02:56.4]} 9... Bc5 {[%clk
0:02:47.7]} 10. O-O-O {[%clk 0:02:46.7]} 10... O-O {[%clk 0:02:47.4]} 11. Nb3
{[%clk 0:02:33.7]} 11... b6 {[%clk 0:02:39.3]} 12. Be2 {[%clk 0:02:27.7]} 12...
a5 {[%clk 0:02:16.4]} 13. Bb5 {[%clk 0:02:19.8]} 13... Bb7 {[%clk 0:01:59.7]}
14. Kb1 {[%clk 0:02:07.2]} 14... Qe7 {[%clk 0:01:56]} 15. g4 {[%clk 0:01:55.6]}
15... Rfc8 {[%clk 0:01:56]} 16. Rhf1 {[%clk 0:01:52.4]} 16... Na7 {[%clk
0:01:36.5]} 17. f5 {[%clk 0:01:37.5]} 17... exf5 {[%clk 0:01:12.4]} 18. gxf5
{[%clk 0:01:36.9]} 18... Bxe3 {[%clk 0:01:00.3]} 19. Qxe3 {[%clk 0:01:35.4]}
19... Rxc3 {[%clk 0:00:49]} 20. Qxc3 {[%clk 0:01:24.7]} 20... Nxb5 {[%clk
0:00:48.5]} 21. Qd3 {[%clk 0:01:20.5]} 21... Bc6 {[%clk 0:00:40.2]} 22. f6
{[%clk 0:01:20.1]} 22... Qxe5 {[%clk 0:00:35.4]} 23. fxg7 {[%clk 0:01:17.2]}
23... a4 {[%clk 0:00:33.9]} 24. Rde1 {[%clk 0:01:09.1]} 24... Qh5 {[%clk
0:00:20.7]} 25. Nd4 {[%clk 0:01:04.7]} 25... Nc5 {[%clk 0:00:18.1]} 26. Qe3
{[%clk 0:00:43.3]} 26... Nxd4 {[%clk 0:00:16.8]} 27. Qxd4 {[%clk 0:00:42.8]}
27... Ne4 {[%clk 0:00:17.2]} 28. Rd1 {[%clk 0:00:34.7]} 28... a3 {[%clk
0:00:16.8]} 29. Qxb6 {[%clk 0:00:31.8]} 29... Rc8 {[%clk 0:00:11.3]} 30. Qa6
{[%clk 0:00:30.4]} 30... Qh3 {[%clk 0:00:09.9]} 31. Rg1 {[%clk 0:00:21]} 31...
axb2 {[%clk 0:00:08.8]} 32. Kxb2 {[%clk 0:00:20.8]} 32... Qc3+ {[%clk
0:00:08.4]} 33. Kc1 {[%clk 0:00:14]} 33... Qa1# {[%clk 0:00:06.9]} 0-1

[Event "Late-Titled-Tuesday-Blitz-September-05-2023"]
[Site "Chess.com"]
[Date "2023.09.05"]
[Round "10"]
[White "kleinebeer98"]
[Black "Fandorine"]
[Result "0-1"]
[WhiteElo "2863"]
[BlackElo "2942"]
[TimeControl "180+1"]
[EndTime "15:54:46 PDT"]
[Termination "Fandorine won on time"]

1. e4 {[%clk 0:03:00.9]} 1... e5 {[%clk 0:02:59.6]} 2. Bc4 {[%clk 0:03:00.4]}
2... Nf6 {[%clk 0:02:58]} 3. d3 {[%clk 0:03:00.8]} 3... Nc6 {[%clk 0:02:54.5]}
4. Nc3 {[%clk 0:03:00.7]} 4... Bb4 {[%clk 0:02:54.6]} 5. Ne2 {[%clk 0:03:00.8]}
5... d5 {[%clk 0:02:54.6]} 6. exd5 {[%clk 0:03:01.7]} 6... Nxd5 {[%clk 0:02:55]}
7. O-O {[%clk 0:03:02.2]} 7... Be6 {[%clk 0:02:51.5]} 8. Bxd5 {[%clk 0:03:00.6]}
8... Bxd5 {[%clk 0:02:51.4]} 9. f4 {[%clk 0:03:01.3]} 9... f6 {[%clk 0:02:51.5]}
10. Qe1 {[%clk 0:02:55.8]} 10... O-O {[%clk 0:02:07.4]} 11. Qh4 {[%clk
0:02:44.9]} 11... exf4 {[%clk 0:01:53.3]} 12. Nxf4 {[%clk 0:02:37]} 12... Bf7
{[%clk 0:01:53.1]} 13. Bd2 {[%clk 0:02:28.2]} 13... Nd4 {[%clk 0:01:42.8]} 14.
Rac1 {[%clk 0:02:10.4]} 14... Qd7 {[%clk 0:01:31.6]} 15. Kh1 {[%clk 0:02:09]}
15... Rae8 {[%clk 0:01:31.2]} 16. a3 {[%clk 0:02:05.9]} 16... Ba5 {[%clk
0:01:25.7]} 17. b4 {[%clk 0:02:05.8]} 17... Bb6 {[%clk 0:01:25.5]} 18. Ne4
{[%clk 0:02:06.6]} 18... Bg6 {[%clk 0:01:07.9]} 19. Nxg6 {[%clk 0:02:03.1]}
19... hxg6 {[%clk 0:01:08.8]} 20. Qg3 {[%clk 0:01:45.6]} 20... Ne2 {[%clk
0:00:54.8]} 21. Qxg6 {[%clk 0:01:44.8]} 21... Nxc1 {[%clk 0:00:54]} 22. Bxc1
{[%clk 0:01:41.9]} 22... Qf7 {[%clk 0:00:48.1]} 23. Qg3 {[%clk 0:01:34]} 23...
f5 {[%clk 0:00:45.7]} 24. Ng5 {[%clk 0:01:12.9]} 24... Qg6 {[%clk 0:00:40.9]}
25. Qh4 {[%clk 0:01:13.6]} 25... f4 {[%clk 0:00:32.3]} 26. Ne4 {[%clk 0:00:47]}
26... Be3 {[%clk 0:00:27.2]} 27. Bb2 {[%clk 0:00:44.7]} 27... f3 {[%clk
0:00:24.3]} 28. g3 {[%clk 0:00:29]} 28... b6 {[%clk 0:00:24.5]} 29. Qh3 {[%clk
0:00:20.8]} 29... Rxe4 {[%clk 0:00:24.4]} 30. dxe4 {[%clk 0:00:20.3]} 30... Qxe4
{[%clk 0:00:25.3]} 31. Ba1 {[%clk 0:00:06.5]} 31... Bg5 {[%clk 0:00:24.5]} 32.
b5 {[%clk 0:00:02]} 32... Qe2 {[%clk 0:00:18.5]} 33. a4 {[%clk 0:00:01.6]} 33...
Rd8 {[%clk 0:00:15.2]} 0-1

[Event "Late-Titled-Tuesday-Blitz-September-05-2023"]
[Site "Chess.com"]
[Date "2023.09.05"]
[Round "10"]
[White "cthulhuuu"]
[Black "KorolDimitriy75"]
[Result "1-0"]
[WhiteElo "2469"]
[BlackElo "2337"]
[TimeControl "180+1"]
[EndTime "15:54:47 PDT"]
[Termination "cthulhuuu won on time"]

1. e4 {[%clk 0:03:00.1]} 1... c5 {[%clk 0:02:59.3]} 2. Nf3 {[%clk 0:02:59.8]}
2... d6 {[%clk 0:02:59.3]} 3. g3 {[%clk 0:03:00]} 3... g6 {[%clk 0:02:59.2]} 4.
Bg2 {[%clk 0:03:00.2]} 4... Bg7 {[%clk 0:02:59.6]} 5. O-O {[%clk 0:03:00.6]}
5... Nc6 {[%clk 0:02:59.8]} 6. d3 {[%clk 0:03:00.5]} 6... e5 {[%clk 0:03:00]} 7.
Nc3 {[%clk 0:03:00.6]} 7... Nge7 {[%clk 0:03:00.6]} 8. Nd2 {[%clk 0:03:01.2]}
8... O-O {[%clk 0:03:00.7]} 9. Nc4 {[%clk 0:03:01.6]} 9... f5 {[%clk 0:02:59.9]}
10. f4 {[%clk 0:03:00.9]} 10... Be6 {[%clk 0:02:58.9]} 11. Nd5 {[%clk
0:03:00.6]} 11... Qd7 {[%clk 0:02:57.7]} 12. a4 {[%clk 0:02:57.1]} 12... Rae8
{[%clk 0:02:56.4]} 13. c3 {[%clk 0:02:56.4]} 13... h6 {[%clk 0:02:53]} 14. a5
{[%clk 0:02:55.9]} 14... Kh7 {[%clk 0:02:52.3]} 15. Qa4 {[%clk 0:02:55.4]} 15...
Nc8 {[%clk 0:02:34.3]} 16. a6 {[%clk 0:02:33.5]} 16... fxe4 {[%clk 0:01:29]} 17.
Bxe4 {[%clk 0:02:17.8]} 17... Bxd5 {[%clk 0:01:14.8]} 18. Bxd5 {[%clk
0:02:17.1]} 18... N8e7 {[%clk 0:01:13.6]} 19. Bg2 {[%clk 0:02:02.5]} 19... b6
{[%clk 0:00:52.6]} 20. Be3 {[%clk 0:02:01.9]} 20... d5 {[%clk 0:00:47.6]} 21.
Nxe5 {[%clk 0:01:54.5]} 21... Nxe5 {[%clk 0:00:45.6]} 22. fxe5 {[%clk
0:01:54.3]} 22... Rxf1+ {[%clk 0:00:39.8]} 23. Kxf1 {[%clk 0:01:48.4]} 23...
Qxa4 {[%clk 0:00:35.8]} 24. Rxa4 {[%clk 0:01:49]} 24... Bxe5 {[%clk 0:00:34.9]}
25. Bf4 {[%clk 0:01:37.3]} 25... Bxf4 {[%clk 0:00:23.3]} 26. Rxf4 {[%clk
0:01:38]} 26... Nf5 {[%clk 0:00:20.9]} 27. Bxd5 {[%clk 0:01:09.5]} 27... Ne3+
{[%clk 0:00:20.5]} 28. Kf2 {[%clk 0:01:10]} 28... Nxd5 {[%clk 0:00:20.5]} 29.
Rf7+ {[%clk 0:01:10.6]} 29... Kg8 {[%clk 0:00:18.4]} 30. Rxa7 {[%clk 0:01:11.1]}
30... Rf8+ {[%clk 0:00:07.3]} 31. Ke1 {[%clk 0:01:07.6]} 31... Rf7 {[%clk
0:00:07.3]} 32. Rb7 {[%clk 0:01:06.3]} 32... Nc7 {[%clk 0:00:04.5]} 33. a7
{[%clk 0:01:00.9]} 33... Na8 {[%clk 0:00:03.1]} 34. Rb8+ {[%clk 0:00:58.9]}
34... Rf8 {[%clk 0:00:03.4]} 35. d4 {[%clk 0:00:56]} 35... cxd4 {[%clk
0:00:03.2]} 36. cxd4 {[%clk 0:00:56]} 36... Kf7 {[%clk 0:00:04.1]} 37. Kd2
{[%clk 0:00:53.5]} 37... Ke7 {[%clk 0:00:03.3]} 38. d5 {[%clk 0:00:50.2]} 38...
Rd8 {[%clk 0:00:02.9]} 39. Kc3 {[%clk 0:00:46.5]} 39... Kd7 {[%clk 0:00:03.1]}
40. d6 {[%clk 0:00:39.3]} 40... Rc8+ {[%clk 0:00:01.5]} 41. Kb4 {[%clk
0:00:39.3]} 1-0

[Event "Late-Titled-Tuesday-Blitz-September-05-2023"]
[Site "Chess.com"]
[Date "2023.09.05"]
[Round "10"]
[White "Michalczak"]
[Black "NovikovaGalina"]
[Result "0-1"]
[WhiteElo "2490"]
[BlackElo "2411"]
[TimeControl "180+1"]
[EndTime "15:54:51 PDT"]
[Termination "NovikovaGalina won by checkmate"]

1. e4 {[%clk 0:02:56.6]} 1... e6 {[%clk 0:02:59.3]} 2. d4 {[%clk 0:02:54.2]}
2... d5 {[%clk 0:02:59.5]} 3. Nc3 {[%clk 0:02:55.1]} 3... Bb4 {[%clk 0:02:58.8]}
4. e5 {[%clk 0:02:54]} 4... c5 {[%clk 0:02:59]} 5. a3 {[%clk 0:02:54.6]} 5...
Bxc3+ {[%clk 0:02:59.4]} 6. bxc3 {[%clk 0:02:55.5]} 6... Ne7 {[%clk 0:02:59.8]}
7. Qg4 {[%clk 0:02:54.7]} 7... Kf8 {[%clk 0:03:00.3]} 8. Bd2 {[%clk 0:02:51.8]}
8... Qa5 {[%clk 0:03:00]} 9. a4 {[%clk 0:02:50.4]} 9... Nbc6 {[%clk 0:02:53.4]}
10. Nh3 {[%clk 0:02:32.4]} 10... Qc7 {[%clk 0:02:40.6]} 11. Bd3 {[%clk
0:02:26.6]} 11... Nf5 {[%clk 0:02:31.6]} 12. Qf4 {[%clk 0:02:04]} 12... cxd4
{[%clk 0:02:20]} 13. Bxf5 {[%clk 0:02:03.3]} 13... dxc3 {[%clk 0:02:12.5]} 14.
Bxc3 {[%clk 0:01:36.9]} 14... exf5 {[%clk 0:02:08.6]} 15. O-O {[%clk 0:01:28.4]}
15... Be6 {[%clk 0:02:05.8]} 16. Bb4+ {[%clk 0:01:27.3]} 16... Nxb4 {[%clk
0:01:56.2]} 17. Qxb4+ {[%clk 0:01:26.9]} 17... Kg8 {[%clk 0:01:57.1]} 18. Rfe1
{[%clk 0:01:19.3]} 18... h6 {[%clk 0:01:56.9]} 19. Nf4 {[%clk 0:01:10.8]} 19...
Kh7 {[%clk 0:01:56.6]} 20. Rab1 {[%clk 0:01:04.3]} 20... Rab8 {[%clk 0:01:55.7]}
21. a5 {[%clk 0:01:03.7]} 21... Rhc8 {[%clk 0:01:52.2]} 22. Re2 {[%clk
0:00:59.3]} 22... Qc4 {[%clk 0:01:49.4]} 23. Qd2 {[%clk 0:00:56.6]} 23... b5
{[%clk 0:01:42.3]} 24. Rb4 {[%clk 0:00:38.6]} 24... Qc7 {[%clk 0:01:19.3]} 25.
Rd4 {[%clk 0:00:35.8]} 25... Rd8 {[%clk 0:01:13.4]} 26. h4 {[%clk 0:00:34.8]}
26... Rbc8 {[%clk 0:01:01.6]} 27. Qe3 {[%clk 0:00:30.4]} 27... Qc3 {[%clk
0:00:53.9]} 28. Rd3 {[%clk 0:00:26.8]} 28... Qxa5 {[%clk 0:00:52.1]} 29. Qg3
{[%clk 0:00:24.6]} 29... Qb4 {[%clk 0:00:40]} 30. Nh5 {[%clk 0:00:22.5]} 30...
Qg4 {[%clk 0:00:39.6]} 31. Nf4 {[%clk 0:00:14.8]} 31... Qxg3 {[%clk 0:00:38.5]}
32. Rxg3 {[%clk 0:00:15.5]} 32... a5 {[%clk 0:00:35.8]} 33. Nh5 {[%clk
0:00:15.2]} 33... Rg8 {[%clk 0:00:35.2]} 34. f4 {[%clk 0:00:15.8]} 34... b4
{[%clk 0:00:34.4]} 35. Rd2 {[%clk 0:00:14.1]} 35... a4 {[%clk 0:00:32.7]} 36.
Rgd3 {[%clk 0:00:14.1]} 36... a3 {[%clk 0:00:32.5]} 37. Rb3 {[%clk 0:00:12.2]}
37... Rc4 {[%clk 0:00:31.5]} 38. g3 {[%clk 0:00:09.5]} 38... Ra8 {[%clk
0:00:31.5]} 39. c3 {[%clk 0:00:08.1]} 39... a2 {[%clk 0:00:30.7]} 40. Rxa2
{[%clk 0:00:07.9]} 40... Rxa2 {[%clk 0:00:30.2]} 41. cxb4 {[%clk 0:00:08.8]}
41... Rc1# {[%clk 0:00:30]} 0-1

[Event "Late-Titled-Tuesday-Blitz-September-05-2023"]
[Site "Chess.com"]
[Date "2023.09.05"]
[Round "10"]
[White "azikom"]
[Black "Fengwi"]
[Result "1-0"]
[WhiteElo "2638"]
[BlackElo "2414"]
[TimeControl "180+1"]
[EndTime "15:54:53 PDT"]
[Termination "azikom won on time"]

1. e4 {[%clk 0:02:58.7]} 1... c5 {[%clk 0:02:58.8]} 2. Nc3 {[%clk 0:02:58]} 2...
d6 {[%clk 0:02:57.1]} 3. g3 {[%clk 0:02:58.2]} 3... Nc6 {[%clk 0:02:56.1]} 4.
Bg2 {[%clk 0:02:58.6]} 4... g6 {[%clk 0:02:56.6]} 5. d3 {[%clk 0:02:58.9]} 5...
Bg7 {[%clk 0:02:57]} 6. h4 {[%clk 0:02:59.5]} 6... Nf6 {[%clk 0:02:54.9]} 7.
Nge2 {[%clk 0:02:49.2]} 7... Rb8 {[%clk 0:02:41.6]} 8. Nf4 {[%clk 0:02:47.4]}
8... h6 {[%clk 0:02:37.4]} 9. h5 {[%clk 0:02:43.8]} 9... g5 {[%clk 0:02:36.8]}
10. Nfd5 {[%clk 0:02:44.3]} 10... Nd7 {[%clk 0:02:35]} 11. f4 {[%clk 0:02:41]}
11... e6 {[%clk 0:02:32.5]} 12. Ne3 {[%clk 0:02:39.7]} 12... gxf4 {[%clk
0:02:32.5]} 13. gxf4 {[%clk 0:02:39.6]} 13... Nd4 {[%clk 0:02:31.2]} 14. Ne2
{[%clk 0:02:31.3]} 14... Bf6 {[%clk 0:02:22.9]} 15. c3 {[%clk 0:02:30.9]} 15...
Bh4+ {[%clk 0:02:18.7]} 16. Kf1 {[%clk 0:02:30.3]} 16... Nxe2 {[%clk 0:02:16.4]}
17. Qxe2 {[%clk 0:02:31]} 17... Be7 {[%clk 0:01:47.2]} 18. Bd2 {[%clk
0:02:24.2]} 18... Nf6 {[%clk 0:01:46.4]} 19. e5 {[%clk 0:02:12.5]} 19... dxe5
{[%clk 0:01:41]} 20. fxe5 {[%clk 0:02:13.4]} 20... Nd7 {[%clk 0:01:41.3]} 21.
Ng4 {[%clk 0:02:05.4]} 21... Bg5 {[%clk 0:01:25.1]} 22. Rh3 {[%clk 0:02:03.3]}
22... Bxd2 {[%clk 0:01:17.8]} 23. Qxd2 {[%clk 0:02:02.5]} 23... Qc7 {[%clk
0:01:13.1]} 24. Re1 {[%clk 0:01:52.7]} 24... b6 {[%clk 0:01:09.6]} 25. Nxh6
{[%clk 0:01:27]} 25... Bb7 {[%clk 0:01:07.4]} 26. Qg5 {[%clk 0:01:21.4]} 26...
Bxg2+ {[%clk 0:01:06]} 27. Kxg2 {[%clk 0:01:21.1]} 27... Nxe5 {[%clk 0:00:27.7]}
28. Rhe3 {[%clk 0:00:49.7]} 28... Rxh6 {[%clk 0:00:07.1]} 29. Qxh6 {[%clk
0:00:47.1]} 29... Ng4 {[%clk 0:00:07.1]} 30. Rxe6+ {[%clk 0:00:44.9]} 30... fxe6
{[%clk 0:00:06.6]} 31. Qxe6+ {[%clk 0:00:44.3]} 31... Kd8 {[%clk 0:00:05.2]} 32.
Qxg4 {[%clk 0:00:43.4]} 32... Qc6+ {[%clk 0:00:04.5]} 33. Qf3 {[%clk 0:00:40.9]}
33... Qh6 {[%clk 0:00:01.5]} 34. Qf7 {[%clk 0:00:18.2]} 1-0